[Event "Titled Tuesday Blitz November 01 Early 2022"]
[White "Ibarra Jerez, Jose Carlos"]
[Black "Shaik Sumer Arsh"]
[WhiteFideId "2226332"]
[BlackFideId "45020000"]
[WhiteElo "2627"]
[BlackElo "2190"]
[Result "1-0"]
[Round "01"]
[TimeControl "180+1"]
[Date "2022.11.01"]
[WhiteClock "0:00:03"]
[BlackClock "0:00:02"]

1. e4 {[%clk 0:02:52]}  e5 {[%clk 0:02:56]} 2. Nf3 {[%clk 0:02:49]}  Nc6 {[%clk 0:02:56]} 3. d4 {[%clk 0:02:47]}  exd4 {[%clk 0:02:56]} 4. Nxd4 {[%clk 0:02:44]}  Nf6 {[%clk 0:02:56]} 5. Nxc6 {[%clk 0:02:44]}  bxc6 {[%clk 0:02:57]} 6. e5 {[%clk 0:02:44]}  Qe7 {[%clk 0:02:57]} 7. Qe2 {[%clk 0:02:45]}  Nd5 {[%clk 0:02:58]} 8. Nd2 {[%clk 0:02:45]}  g6 {[%clk 0:02:52]} 9. c4 {[%clk 0:02:44]}  Ba6 {[%clk 0:02:51]} 10. Nf3 {[%clk 0:02:42]}  Bg7 {[%clk 0:02:47]} 11. Bg5 {[%clk 0:02:42]}  Qb4+ {[%clk 0:02:37]} 12. Qd2 {[%clk 0:02:41]}  Qxd2+ {[%clk 0:02:35]} 13. Bxd2 {[%clk 0:02:36]}  Nb6 {[%clk 0:02:33]} 14. b3 {[%clk 0:02:36]}  O-O {[%clk 0:02:30]} 15. O-O-O {[%clk 0:02:29]}  d5 {[%clk 0:02:12]} 16. exd6 {[%clk 0:02:22]}  cxd6 {[%clk 0:02:12]} 17. Bb4 {[%clk 0:02:12]}  c5 {[%clk 0:02:06]} 18. Ba5 {[%clk 0:01:57]}  Rfd8 {[%clk 0:01:56]} 19. Bd3 {[%clk 0:01:33]}  Bb7 {[%clk 0:01:55]} 20. Rhe1 {[%clk 0:01:30]}  d5 {[%clk 0:01:27]} 21. Re7 {[%clk 0:01:04]}  dxc4 {[%clk 0:01:19]} 22. bxc4 {[%clk 0:00:51]}  Bh6+ {[%clk 0:01:17]} 23. Bd2 {[%clk 0:00:31]}  Bxf3 {[%clk 0:00:42]} 24. gxf3 {[%clk 0:00:28]}  Rxd3 {[%clk 0:00:40]} 25. Bxh6 {[%clk 0:00:27]}  Rxd1+ {[%clk 0:00:40]} 26. Kxd1 {[%clk 0:00:27]}  Nxc4 {[%clk 0:00:40]} 27. Rc7 {[%clk 0:00:18]}  Nd6 {[%clk 0:00:31]} 28. Rxc5 {[%clk 0:00:18]}  Nf5 {[%clk 0:00:31]} 29. Bd2 {[%clk 0:00:18]}  Rd8 {[%clk 0:00:27]} 30. Ra5 {[%clk 0:00:16]}  Nd4 {[%clk 0:00:26]} 31. Kc1 {[%clk 0:00:15]}  Nxf3 {[%clk 0:00:24]} 32. Be3 {[%clk 0:00:14]}  Ne1 {[%clk 0:00:20]} 33. Rxa7 {[%clk 0:00:13]}  Nd3+ {[%clk 0:00:21]} 34. Kc2 {[%clk 0:00:13]}  Nb4+ {[%clk 0:00:21]} 35. Kb3 {[%clk 0:00:13]}  Nd5 {[%clk 0:00:22]} 36. Bh6 {[%clk 0:00:12]}  Rc8 {[%clk 0:00:13]} 37. a4 {[%clk 0:00:12]}  Rc3+ {[%clk 0:00:09]} 38. Kb2 {[%clk 0:00:12]}  Rc8 {[%clk 0:00:10]} 39. a5 {[%clk 0:00:13]}  Nb4 {[%clk 0:00:10]} 40. a6 {[%clk 0:00:08]}  Nc6 {[%clk 0:00:09]} 41. Rb7 {[%clk 0:00:07]}  Ra8 {[%clk 0:00:07]} 42. Rb6 {[%clk 0:00:07]}  Na7 {[%clk 0:00:01]} 43. Kb3 {[%clk 0:00:03]}  Nc8 {[%clk 0:00:01]} 44. Rc6 {[%clk 0:00:03]}  Ne7 {[%clk 0:00:02]} 45. Rc7 {[%clk 0:00:03]}  Nf5 {[%clk 0:00:02]} 46. a7 {[%clk 0:00:02]}  Nxh6 {[%clk 0:00:02]} 47. Rb7 {[%clk 0:00:03]}  Kg7 {[%clk 0:00:02]} 48. Kb4 {[%clk 0:00:03]}  Nf5 {[%clk 0:00:02]} 49. Kc5 {[%clk 0:00:04]}  Rc8+ {[%clk 0:00:02]} 50. Kb6 {[%clk 0:00:04]}  Nd6 {[%clk 0:00:02]} 51. Rb8 {[%clk 0:00:05]}  Nc4+ {[%clk 0:00:01]} 52. Kb7 {[%clk 0:00:05]}  Nd6+ {[%clk 0:00:02]} 53. Ka6 {[%clk 0:00:03]}  Rc6+ {[%clk 0:00:02]} 54. Ka5 {[%clk 0:00:04]}  Rc5+ {[%clk 0:00:01]} 55. Kb4 {[%clk 0:00:03]}  Rc4+ {[%clk 0:00:02]} 56. Kb3 {[%clk 0:00:03]} 1-0


[Site "https://www.chess.com"]

[Event "Titled Tuesday Blitz November 01 Early 2022"]
[White "Ivic, Velimir"]
[Black "Aydin, Gulenay"]
[WhiteFideId "950122"]
[BlackFideId "34557431"]
[WhiteElo "2625"]
[BlackElo "2009"]
[Result "1/2-1/2"]
[Round "01"]
[TimeControl "180+1"]
[Date "2022.11.02"]
[WhiteClock "0:00:03"]
[BlackClock "0:00:05"]

1. e4 {[%clk 0:03:00]}  c5 {[%clk 0:02:58]} 2. Nf3 {[%clk 0:03:00]}  d6 {[%clk 0:02:58]} 3. c3 {[%clk 0:03:00]}  Nf6 {[%clk 0:02:53]} 4. Be2 {[%clk 0:03:00]}  g6 {[%clk 0:02:54]} 5. O-O {[%clk 0:03:00]}  Nc6 {[%clk 0:02:54]} 6. d4 {[%clk 0:02:59]}  cxd4 {[%clk 0:02:53]} 7. cxd4 {[%clk 0:03:00]}  Bg7 {[%clk 0:02:50]} 8. d5 {[%clk 0:02:56]}  Ne5 {[%clk 0:02:40]} 9. Nxe5 {[%clk 0:02:56]}  dxe5 {[%clk 0:02:41]} 10. Nc3 {[%clk 0:02:56]}  O-O {[%clk 0:02:41]} 11. Be3 {[%clk 0:02:57]}  Ne8 {[%clk 0:02:34]} 12. Qb3 {[%clk 0:02:54]}  Nd6 {[%clk 0:02:33]} 13. Rac1 {[%clk 0:02:55]}  Bd7 {[%clk 0:02:26]} 14. f3 {[%clk 0:02:50]}  h5 {[%clk 0:02:23]} 15. Qb4 {[%clk 0:02:48]}  Kh7 {[%clk 0:02:13]} 16. a4 {[%clk 0:02:40]}  b6 {[%clk 0:01:32]} 17. Nb5 {[%clk 0:02:36]}  Nxb5 {[%clk 0:01:14]} 18. Bxb5 {[%clk 0:02:36]}  Rc8 {[%clk 0:01:11]} 19. Bxd7 {[%clk 0:02:30]}  Qxd7 {[%clk 0:01:12]} 20. Qb5 {[%clk 0:02:31]}  Qd6 {[%clk 0:00:59]} 21. Rc6 {[%clk 0:02:13]}  Rxc6 {[%clk 0:00:43]} 22. dxc6 {[%clk 0:02:14]}  Rc8 {[%clk 0:00:43]} 23. Rc1 {[%clk 0:02:14]}  Bh6 {[%clk 0:00:32]} 24. Bxh6 {[%clk 0:02:12]}  Kxh6 {[%clk 0:00:33]} 25. b4 {[%clk 0:01:56]}  Qd4+ {[%clk 0:00:27]} 26. Kf1 {[%clk 0:01:56]}  Qe3 {[%clk 0:00:20]} 27. Qc4 {[%clk 0:01:55]}  Rd8 {[%clk 0:00:20]} 28. Re1 {[%clk 0:01:48]}  Qf4 {[%clk 0:00:13]} 29. c7 {[%clk 0:01:33]}  Rc8 {[%clk 0:00:08]} 30. h3 {[%clk 0:01:17]}  Qd2 {[%clk 0:00:06]} 31. Rc1 {[%clk 0:01:16]}  f6 {[%clk 0:00:05]} 32. b5 {[%clk 0:01:13]}  Qd6 {[%clk 0:00:05]} 33. Ke2 {[%clk 0:01:12]}  h4 {[%clk 0:00:02]} 34. Rc3 {[%clk 0:00:44]}  Qd7 {[%clk 0:00:02]} 35. Rc2 {[%clk 0:00:35]}  Qd6 {[%clk 0:00:03]} 36. Kf1 {[%clk 0:00:11]}  Kg7 {[%clk 0:00:03]} 37. Kg1 {[%clk 0:00:12]}  Qd1+ {[%clk 0:00:03]} 38. Kh2 {[%clk 0:00:12]}  Qd6 {[%clk 0:00:04]} 39. Qc3 {[%clk 0:00:09]}  g5 {[%clk 0:00:04]} 40. Rc1 {[%clk 0:00:08]}  Qd7 {[%clk 0:00:04]} 41. Qc2 {[%clk 0:00:08]}  Qd6 {[%clk 0:00:05]} 42. g3 {[%clk 0:00:07]}  hxg3+ {[%clk 0:00:04]} 43. Kxg3 {[%clk 0:00:08]}  Qd4 {[%clk 0:00:04]} 44. Qc6 {[%clk 0:00:05]}  Qd2 {[%clk 0:00:02]} 45. Rc2 {[%clk 0:00:04]}  Qf4+ {[%clk 0:00:02]} 46. Kg2 {[%clk 0:00:05]}  Qe3 {[%clk 0:00:01]} 47. Qe6 {[%clk 0:00:04]}  Qd3 {[%clk 0:00:02]} 48. Qxe7+ {[%clk 0:00:03]}  Kg6 {[%clk 0:00:02]} 49. Rc6 {[%clk 0:00:02]}  Qd2+ {[%clk 0:00:03]} 50. Kg3 {[%clk 0:00:02]}  Qf4+ {[%clk 0:00:03]} 51. Kf2 {[%clk 0:00:02]}  Qd2+ {[%clk 0:00:04]} 52. Kg1 {[%clk 0:00:03]}  Qe1+ {[%clk 0:00:03]} 53. Kh2 {[%clk 0:00:02]}  Qd2+ {[%clk 0:00:04]} 54. Kg1 {[%clk 0:00:02]}  Qe1+ {[%clk 0:00:04]} 55. Kg2 {[%clk 0:00:03]}  Qd2+ {[%clk 0:00:05]} 56. Kg1 {[%clk 0:00:03]} 1/2-1/2


[Site "https://www.chess.com"]

[Event "Titled Tuesday Blitz November 01 Early 2022"]
[White "Jaracz, Pawel"]
[Black "Kazancev, Valerij M"]
[WhiteFideId "1102222"]
[BlackFideId "4179609"]
[WhiteElo "2459"]
[BlackElo "2379"]
[Result "1-0"]
[Round "01"]
[TimeControl "180+1"]
[Date "2022.11.02"]
[WhiteClock "0:01:40"]
[BlackClock "0:01:23"]

1. d4 {[%clk 0:02:59]}  Nf6 {[%clk 0:02:44]} 2. c4 {[%clk 0:02:58]}  e6 {[%clk 0:02:40]} 3. g3 {[%clk 0:02:55]}  d5 {[%clk 0:02:37]} 4. Bg2 {[%clk 0:02:54]}  Nbd7 {[%clk 0:02:37]} 5. Nf3 {[%clk 0:02:53]}  dxc4 {[%clk 0:02:35]} 6. O-O {[%clk 0:02:51]}  c6 {[%clk 0:02:27]} 7. a4 {[%clk 0:02:41]}  a5 {[%clk 0:02:24]} 8. Nc3 {[%clk 0:02:23]}  Bb4 {[%clk 0:02:16]} 9. Qc2 {[%clk 0:02:11]}  Ra6 {[%clk 0:02:02]} 10. Nd2 {[%clk 0:02:02]}  Bxc3 {[%clk 0:01:56]} 11. bxc3 {[%clk 0:01:59]}  b5 {[%clk 0:01:57]} 12. Ba3 {[%clk 0:01:59]}  Nd5 {[%clk 0:01:49]} 13. e4 {[%clk 0:01:57]}  N5b6 {[%clk 0:01:42]} 14. axb5 {[%clk 0:01:52]}  cxb5 {[%clk 0:01:41]} 15. Rab1 {[%clk 0:01:51]}  Qg5 {[%clk 0:01:29]} 16. f4 {[%clk 0:01:42]}  Qh5 {[%clk 0:01:24]} 17. Bf3 {[%clk 0:01:41]}  Qh6 {[%clk 0:01:23]} 18. Rxb5 {[%clk 0:01:40]} 1-0


[Site "https://www.chess.com"]

[Event "Titled Tuesday Blitz November 01 Early 2022"]
[White "Jaskolka, Tomasz"]
[Black "Rakhmanov, Aleksandr"]
[WhiteFideId "1170791"]
[BlackFideId "4173708"]
[WhiteElo "2126"]
[BlackElo "2530"]
[Result "0-1"]
[Round "01"]
[TimeControl "180+1"]
[Date "2022.11.02"]
[WhiteClock "0:00:07"]
[BlackClock "0:00:11"]

1. e4 {[%clk 0:02:56]}  c5 {[%clk 0:02:58]} 2. Nf3 {[%clk 0:02:56]}  Nf6 {[%clk 0:02:58]} 3. e5 {[%clk 0:02:55]}  Nd5 {[%clk 0:02:59]} 4. Nc3 {[%clk 0:02:56]}  Nxc3 {[%clk 0:02:59]} 5. dxc3 {[%clk 0:02:57]}  Nc6 {[%clk 0:02:59]} 6. Bd3 {[%clk 0:02:51]}  e6 {[%clk 0:02:58]} 7. Qe2 {[%clk 0:02:50]}  h6 {[%clk 0:02:58]} 8. Bf4 {[%clk 0:02:43]}  Qc7 {[%clk 0:02:57]} 9. O-O-O {[%clk 0:02:43]}  a6 {[%clk 0:02:56]} 10. h4 {[%clk 0:02:31]}  b5 {[%clk 0:02:53]} 11. g4 {[%clk 0:02:28]}  c4 {[%clk 0:02:51]} 12. Be4 {[%clk 0:02:28]}  Bb7 {[%clk 0:02:51]} 13. Nd4 {[%clk 0:02:19]}  Ne7 {[%clk 0:02:47]} 14. Qf3 {[%clk 0:02:11]}  Rb8 {[%clk 0:02:38]} 15. Rhe1 {[%clk 0:01:50]}  Bxe4 {[%clk 0:02:27]} 16. Qxe4 {[%clk 0:01:50]}  Qb7 {[%clk 0:02:19]} 17. a3 {[%clk 0:01:43]}  Qxe4 {[%clk 0:02:13]} 18. Rxe4 {[%clk 0:01:44]}  Nd5 {[%clk 0:02:11]} 19. Bg3 {[%clk 0:01:43]}  Bc5 {[%clk 0:01:05]} 20. f4 {[%clk 0:01:42]}  h5 {[%clk 0:01:00]} 21. g5 {[%clk 0:01:41]}  g6 {[%clk 0:00:44]} 22. Bf2 {[%clk 0:01:33]}  Rc8 {[%clk 0:00:32]} 23. Bg1 {[%clk 0:01:33]}  O-O {[%clk 0:00:31]} 24. Ne2 {[%clk 0:01:26]}  Be7 {[%clk 0:00:29]} 25. Ng3 {[%clk 0:01:26]}  a5 {[%clk 0:00:26]} 26. Re2 {[%clk 0:01:23]}  b4 {[%clk 0:00:26]} 27. axb4 {[%clk 0:01:20]}  axb4 {[%clk 0:00:27]} 28. cxb4 {[%clk 0:01:20]}  c3 {[%clk 0:00:26]} 29. f5 {[%clk 0:01:13]}  Bxb4 {[%clk 0:00:24]} 30. fxg6 {[%clk 0:01:04]}  Ra8 {[%clk 0:00:18]} 31. Kb1 {[%clk 0:00:55]}  Rfb8 {[%clk 0:00:13]} 32. gxf7+ {[%clk 0:00:54]}  Kxf7 {[%clk 0:00:14]} 33. b3 {[%clk 0:00:23]}  Ra5 {[%clk 0:00:13]} 34. Rxd5 {[%clk 0:00:11]}  exd5 {[%clk 0:00:11]} 35. Rf2+ {[%clk 0:00:12]}  Kg8 {[%clk 0:00:10]} 36. Nxh5 {[%clk 0:00:12]}  Rba8 {[%clk 0:00:10]} 37. Nf6+ {[%clk 0:00:12]}  Kh8 {[%clk 0:00:11]} 38. Nxd5 {[%clk 0:00:07]}  Ra1# {[%clk 0:00:11]} 0-1


[Site "https://www.chess.com"]

[Event "Titled Tuesday Blitz November 01 Early 2022"]
[White "Jean Louis, Marckens"]
[Black "Matinian, Nikita"]
[WhiteFideId "11900270"]
[BlackFideId "24129100"]
[WhiteElo "2030"]
[BlackElo "2422"]
[Result "0-1"]
[Round "01"]
[TimeControl "180+1"]
[Date "2022.11.02"]
[WhiteClock "0:00:08"]
[BlackClock "0:00:15"]

1. d4 {[%clk 0:02:59]}  Nf6 {[%clk 0:02:57]} 2. Nf3 {[%clk 0:02:58]}  g6 {[%clk 0:02:56]} 3. g3 {[%clk 0:02:58]}  Bg7 {[%clk 0:02:55]} 4. Bg2 {[%clk 0:02:59]}  d6 {[%clk 0:02:55]} 5. O-O {[%clk 0:02:57]}  O-O {[%clk 0:02:56]} 6. b3 {[%clk 0:02:57]}  a5 {[%clk 0:02:54]} 7. a4 {[%clk 0:02:54]}  Nc6 {[%clk 0:02:53]} 8. Bb2 {[%clk 0:02:54]}  Bf5 {[%clk 0:02:52]} 9. Re1 {[%clk 0:02:51]}  Qc8 {[%clk 0:02:51]} 10. Nbd2 {[%clk 0:02:48]}  Bh3 {[%clk 0:02:49]} 11. Bh1 {[%clk 0:02:47]}  e5 {[%clk 0:02:27]} 12. dxe5 {[%clk 0:02:35]}  Ng4 {[%clk 0:02:27]} 13. Ng5 {[%clk 0:02:10]}  Ngxe5 {[%clk 0:02:27]} 14. Nxh3 {[%clk 0:01:57]}  Qxh3 {[%clk 0:02:27]} 15. Bg2 {[%clk 0:01:57]}  Qh5 {[%clk 0:02:28]} 16. Rb1 {[%clk 0:01:52]}  f5 {[%clk 0:02:11]} 17. e3 {[%clk 0:01:49]}  Qxd1 {[%clk 0:02:02]} 18. Rexd1 {[%clk 0:01:48]}  Nb4 {[%clk 0:02:01]} 19. Rdc1 {[%clk 0:01:42]}  c6 {[%clk 0:01:57]} 20. Bxe5 {[%clk 0:01:39]}  dxe5 {[%clk 0:01:55]} 21. Nc4 {[%clk 0:01:38]}  e4 {[%clk 0:01:55]} 22. Nb6 {[%clk 0:00:58]}  Rad8 {[%clk 0:01:53]} 23. Nc4 {[%clk 0:00:58]}  Na2 {[%clk 0:01:44]} 24. Rd1 {[%clk 0:00:44]}  Nc3 {[%clk 0:01:44]} 25. Rxd8 {[%clk 0:00:44]}  Rxd8 {[%clk 0:01:45]} 26. Re1 {[%clk 0:00:43]}  Nd1 {[%clk 0:01:41]} 27. f3 {[%clk 0:00:36]}  Bc3 {[%clk 0:01:39]} 28. Re2 {[%clk 0:00:34]}  b5 {[%clk 0:01:39]} 29. axb5 {[%clk 0:00:29]}  cxb5 {[%clk 0:01:40]} 30. Na3 {[%clk 0:00:29]}  Nxe3 {[%clk 0:01:31]} 31. Nxb5 {[%clk 0:00:29]}  Bb4 {[%clk 0:01:12]} 32. fxe4 {[%clk 0:00:27]}  Bc5 {[%clk 0:01:11]} 33. exf5 {[%clk 0:00:19]}  Rd1+ {[%clk 0:01:05]} 34. Kf2 {[%clk 0:00:19]}  gxf5 {[%clk 0:00:49]} 35. Kf3 {[%clk 0:00:17]}  Ng4 {[%clk 0:00:46]} 36. Bh3 {[%clk 0:00:16]}  Nf6 {[%clk 0:00:34]} 37. Re5 {[%clk 0:00:16]}  Bg1 {[%clk 0:00:21]} 38. Rxf5 {[%clk 0:00:15]}  Kg7 {[%clk 0:00:22]} 39. Nc3 {[%clk 0:00:10]}  Rd2 {[%clk 0:00:21]} 40. Rxf6 {[%clk 0:00:10]}  Rf2+ {[%clk 0:00:22]} 41. Kg4 {[%clk 0:00:09]}  Rxf6 {[%clk 0:00:20]} 42. Ne4 {[%clk 0:00:09]}  Rc6 {[%clk 0:00:18]} 43. c4 {[%clk 0:00:09]}  Rb6 {[%clk 0:00:18]} 44. Nd2 {[%clk 0:00:08]}  Be3 {[%clk 0:00:18]} 45. Ne4 {[%clk 0:00:08]}  Rxb3 {[%clk 0:00:17]} 46. Nd6 {[%clk 0:00:09]}  a4 {[%clk 0:00:16]} 47. Kf3 {[%clk 0:00:08]}  Bc5+ {[%clk 0:00:15]} 0-1


[Site "https://www.chess.com"]

[Event "Titled Tuesday Blitz November 01 Early 2022"]
[White "Kanyamarala, Trisha"]
[Black "Zakhartsov, Vladimir"]
[WhiteFideId "45004722"]
[BlackFideId "4145097"]
[WhiteElo "2099"]
[BlackElo "2492"]
[Result "0-1"]
[Round "01"]
[TimeControl "180+1"]
[Date "2022.11.02"]
[WhiteClock "0:00:14"]
[BlackClock "0:00:34"]

1. c4 {[%clk 0:03:00]}  e5 {[%clk 0:02:57]} 2. Nc3 {[%clk 0:02:59]}  Nf6 {[%clk 0:02:57]} 3. g3 {[%clk 0:02:58]}  Bc5 {[%clk 0:02:53]} 4. Bg2 {[%clk 0:02:58]}  Nc6 {[%clk 0:02:54]} 5. d3 {[%clk 0:02:58]}  d6 {[%clk 0:02:49]} 6. Nf3 {[%clk 0:02:58]}  h6 {[%clk 0:02:42]} 7. O-O {[%clk 0:02:57]}  a6 {[%clk 0:02:41]} 8. a3 {[%clk 0:02:57]}  O-O {[%clk 0:02:36]} 9. b4 {[%clk 0:02:55]}  Ba7 {[%clk 0:02:37]} 10. Rb1 {[%clk 0:02:54]}  Ne7 {[%clk 0:02:33]} 11. h3 {[%clk 0:02:45]}  Bf5 {[%clk 0:02:29]} 12. Nh4 {[%clk 0:02:37]}  Bc8 {[%clk 0:02:29]} 13. Nf3 {[%clk 0:02:33]}  c6 {[%clk 0:02:25]} 14. e4 {[%clk 0:02:30]}  Be6 {[%clk 0:02:17]} 15. Qe2 {[%clk 0:02:27]}  Nd7 {[%clk 0:02:14]} 16. Be3 {[%clk 0:02:24]}  Bxe3 {[%clk 0:02:11]} 17. fxe3 {[%clk 0:02:16]}  b5 {[%clk 0:02:08]} 18. a4 {[%clk 0:02:00]}  bxc4 {[%clk 0:01:45]} 19. dxc4 {[%clk 0:02:01]}  a5 {[%clk 0:01:46]} 20. b5 {[%clk 0:01:58]}  Nc5 {[%clk 0:01:39]} 21. Rfd1 {[%clk 0:01:53]}  Qc7 {[%clk 0:01:30]} 22. Rb2 {[%clk 0:01:30]}  Nc8 {[%clk 0:01:27]} 23. Nh4 {[%clk 0:01:26]}  Nb6 {[%clk 0:01:24]} 24. Nf5 {[%clk 0:01:16]}  Nxc4 {[%clk 0:01:15]} 25. Rbb1 {[%clk 0:01:14]}  Kh7 {[%clk 0:00:53]} 26. b6 {[%clk 0:00:46]}  Nxb6 {[%clk 0:00:46]} 27. Nxd6 {[%clk 0:00:43]}  Nbxa4 {[%clk 0:00:46]} 28. Nxa4 {[%clk 0:00:41]}  Nxa4 {[%clk 0:00:47]} 29. Rb7 {[%clk 0:00:41]}  Qd8 {[%clk 0:00:42]} 30. Nxf7 {[%clk 0:00:37]}  Nc3 {[%clk 0:00:34]} 31. Rxd8 {[%clk 0:00:16]}  Nxe2+ {[%clk 0:00:34]} 32. Kf2 {[%clk 0:00:16]}  Raxd8 {[%clk 0:00:34]} 33. Kxe2 {[%clk 0:00:14]}  Rxf7 {[%clk 0:00:34]} 0-1


[Site "https://www.chess.com"]

[Event "Titled Tuesday Blitz November 01 Early 2022"]
[White "Kodinets, Konstantin L."]
[Black "Goriatchkin, Jouri"]
[WhiteFideId "4122011"]
[BlackFideId "4120183"]
[WhiteElo "2447"]
[BlackElo "1863"]
[Result "1-0"]
[Round "01"]
[TimeControl "180+1"]
[Date "2022.11.02"]
[WhiteClock "0:01:21"]
[BlackClock "0:00:05"]

1. d4 {[%clk 0:02:59]}  d5 {[%clk 0:02:59]} 2. Nf3 {[%clk 0:02:58]}  Nf6 {[%clk 0:02:59]} 3. Bf4 {[%clk 0:02:58]}  e6 {[%clk 0:02:46]} 4. Nbd2 {[%clk 0:02:58]}  Bd6 {[%clk 0:02:44]} 5. e3 {[%clk 0:02:59]}  Bxf4 {[%clk 0:02:41]} 6. exf4 {[%clk 0:03:00]}  O-O {[%clk 0:02:41]} 7. c3 {[%clk 0:02:59]}  c5 {[%clk 0:02:41]} 8. dxc5 {[%clk 0:02:59]}  Qc7 {[%clk 0:02:40]} 9. g3 {[%clk 0:02:58]}  Qxc5 {[%clk 0:02:37]} 10. Bd3 {[%clk 0:02:59]}  b6 {[%clk 0:02:36]} 11. Qe2 {[%clk 0:02:56]}  Nc6 {[%clk 0:02:30]} 12. Nb3 {[%clk 0:02:56]}  Qe7 {[%clk 0:02:27]} 13. O-O {[%clk 0:02:56]}  Bb7 {[%clk 0:02:27]} 14. Rfe1 {[%clk 0:02:56]}  Rfd8 {[%clk 0:02:27]} 15. Rad1 {[%clk 0:02:56]}  a6 {[%clk 0:02:17]} 16. h3 {[%clk 0:02:53]}  b5 {[%clk 0:02:17]} 17. a3 {[%clk 0:02:53]}  Qc7 {[%clk 0:02:10]} 18. Nbd4 {[%clk 0:02:51]}  Nxd4 {[%clk 0:02:09]} 19. Nxd4 {[%clk 0:02:52]}  Ne4 {[%clk 0:02:02]} 20. Kh2 {[%clk 0:02:51]}  Nc5 {[%clk 0:01:58]} 21. h4 {[%clk 0:02:48]}  Nxd3 {[%clk 0:01:58]} 22. Rxd3 {[%clk 0:02:43]}  Qd6 {[%clk 0:01:36]} 23. f5 {[%clk 0:02:36]}  exf5 {[%clk 0:01:08]} 24. Nxf5 {[%clk 0:02:30]}  Qf6 {[%clk 0:01:06]} 25. Rf3 {[%clk 0:02:06]}  Kh8 {[%clk 0:00:38]} 26. Nd4 {[%clk 0:02:00]}  Qg6 {[%clk 0:00:35]} 27. Qe7 {[%clk 0:01:57]}  Rab8 {[%clk 0:00:26]} 28. Qxf7 {[%clk 0:01:51]}  Qxf7 {[%clk 0:00:12]} 29. Rxf7 {[%clk 0:01:52]}  Ba8 {[%clk 0:00:12]} 30. Ree7 {[%clk 0:01:51]}  Rg8 {[%clk 0:00:08]} 31. Nf5 {[%clk 0:01:50]}  Rbe8 {[%clk 0:00:04]} 32. h5 {[%clk 0:01:34]}  Rxe7 {[%clk 0:00:04]} 33. Rxe7 {[%clk 0:01:30]}  Rf8 {[%clk 0:00:04]} 34. g4 {[%clk 0:01:24]}  g6 {[%clk 0:00:04]} 35. hxg6 {[%clk 0:01:21]}  hxg6 {[%clk 0:00:05]} 36. Nh4 {[%clk 0:01:21]} 1-0


[Site "https://www.chess.com"]

[Event "Titled Tuesday Blitz November 01 Early 2022"]
[White "Korelskiy, Egor"]
[Black "Aung Thant Zin"]
[WhiteFideId "34329064"]
[BlackFideId "13000063"]
[WhiteElo "2053"]
[BlackElo "2278"]
[Result "1-0"]
[Round "01"]
[TimeControl "180+1"]
[Date "2022.11.02"]
[WhiteClock "0:00:08"]
[BlackClock "0:00:10"]

1. e4 {[%clk 0:02:59]}  c5 {[%clk 0:02:59]} 2. Nf3 {[%clk 0:02:58]}  Nc6 {[%clk 0:02:59]} 3. Bb5 {[%clk 0:02:57]}  e6 {[%clk 0:02:59]} 4. Bxc6 {[%clk 0:02:57]}  bxc6 {[%clk 0:02:58]} 5. O-O {[%clk 0:02:58]}  d6 {[%clk 0:02:58]} 6. e5 {[%clk 0:02:58]}  Ne7 {[%clk 0:02:57]} 7. exd6 {[%clk 0:02:57]}  Nf5 {[%clk 0:02:55]} 8. Nc3 {[%clk 0:02:57]}  Bxd6 {[%clk 0:02:54]} 9. d3 {[%clk 0:02:56]}  O-O {[%clk 0:02:53]} 10. Ne4 {[%clk 0:02:55]}  Be7 {[%clk 0:02:53]} 11. c3 {[%clk 0:02:52]}  Ba6 {[%clk 0:02:51]} 12. c4 {[%clk 0:02:51]}  Bc8 {[%clk 0:02:37]} 13. Be3 {[%clk 0:02:47]}  Nd4 {[%clk 0:02:23]} 14. Bxd4 {[%clk 0:02:28]}  cxd4 {[%clk 0:02:22]} 15. Qc2 {[%clk 0:02:27]}  c5 {[%clk 0:02:19]} 16. Rfe1 {[%clk 0:02:27]}  Bb7 {[%clk 0:02:18]} 17. Ned2 {[%clk 0:02:24]}  Qd7 {[%clk 0:02:05]} 18. Ne5 {[%clk 0:02:21]}  Qc7 {[%clk 0:02:05]} 19. Nef3 {[%clk 0:02:18]}  Rae8 {[%clk 0:02:01]} 20. a3 {[%clk 0:02:16]}  a5 {[%clk 0:01:57]} 21. Rab1 {[%clk 0:02:12]}  Bd6 {[%clk 0:01:54]} 22. Ne4 {[%clk 0:02:02]}  Be7 {[%clk 0:01:49]} 23. h3 {[%clk 0:01:39]}  e5 {[%clk 0:01:37]} 24. Ned2 {[%clk 0:01:33]}  Bd8 {[%clk 0:01:28]} 25. b4 {[%clk 0:01:25]}  axb4 {[%clk 0:01:27]} 26. axb4 {[%clk 0:01:21]}  cxb4 {[%clk 0:01:27]} 27. Rxb4 {[%clk 0:01:20]}  f5 {[%clk 0:01:15]} 28. Rbb1 {[%clk 0:01:07]}  Bc6 {[%clk 0:01:10]} 29. Qb3 {[%clk 0:00:52]}  Qd6 {[%clk 0:00:51]} 30. c5+ {[%clk 0:00:48]}  Qd5 {[%clk 0:00:50]} 31. Qxd5+ {[%clk 0:00:44]}  Bxd5 {[%clk 0:00:50]} 32. Nxe5 {[%clk 0:00:43]}  Ba5 {[%clk 0:00:49]} 33. Rbd1 {[%clk 0:00:26]}  f4 {[%clk 0:00:44]} 34. Kf1 {[%clk 0:00:10]}  Rf6 {[%clk 0:00:32]} 35. Nef3 {[%clk 0:00:08]}  Rxe1+ {[%clk 0:00:27]} 36. Kxe1 {[%clk 0:00:09]}  Bxf3 {[%clk 0:00:27]} 37. gxf3 {[%clk 0:00:09]}  Re6+ {[%clk 0:00:24]} 38. Kf1 {[%clk 0:00:08]}  Rc6 {[%clk 0:00:24]} 39. Ne4 {[%clk 0:00:06]}  Bb4 {[%clk 0:00:22]} 40. Rb1 {[%clk 0:00:05]}  Ba5 {[%clk 0:00:19]} 41. Ke2 {[%clk 0:00:01]}  g6 {[%clk 0:00:19]} 42. Rb5 {[%clk 0:00:01]}  Bc7 {[%clk 0:00:18]} 43. Rb7 {[%clk 0:00:02]}  Kf8 {[%clk 0:00:17]} 44. Rb5 {[%clk 0:00:02]}  Ke8 {[%clk 0:00:17]} 45. Rb4 {[%clk 0:00:03]}  Kd7 {[%clk 0:00:15]} 46. Rxd4+ {[%clk 0:00:02]}  Ke6 {[%clk 0:00:15]} 47. Rb4 {[%clk 0:00:02]}  g5 {[%clk 0:00:15]} 48. d4 {[%clk 0:00:02]}  Kf5 {[%clk 0:00:15]} 49. Nc3 {[%clk 0:00:02]}  Ra6 {[%clk 0:00:14]} 50. d5 {[%clk 0:00:02]}  h6 {[%clk 0:00:13]} 51. d6 {[%clk 0:00:02]}  Bxd6 {[%clk 0:00:13]} 52. cxd6 {[%clk 0:00:02]}  Rxd6 {[%clk 0:00:14]} 53. Rb5+ {[%clk 0:00:02]}  Kg6 {[%clk 0:00:12]} 54. Ne4 {[%clk 0:00:03]}  Rc6 {[%clk 0:00:12]} 55. Kf1 {[%clk 0:00:03]}  Rc1+ {[%clk 0:00:11]} 56. Kg2 {[%clk 0:00:03]}  Rc2 {[%clk 0:00:12]} 57. Rb6+ {[%clk 0:00:03]}  Kf5 {[%clk 0:00:11]} 58. Rxh6 {[%clk 0:00:02]}  Rc4 {[%clk 0:00:10]} 59. Nd6+ {[%clk 0:00:01]}  Ke5 {[%clk 0:00:10]} 60. Nxc4+ {[%clk 0:00:02]}  Kd4 {[%clk 0:00:11]} 61. Nb6 {[%clk 0:00:03]}  Kc3 {[%clk 0:00:09]} 62. Rg6 {[%clk 0:00:04]}  Kd2 {[%clk 0:00:10]} 63. Rxg5 {[%clk 0:00:05]}  Ke1 {[%clk 0:00:10]} 64. h4 {[%clk 0:00:06]}  Ke2 {[%clk 0:00:10]} 65. h5 {[%clk 0:00:07]}  Kd2 {[%clk 0:00:10]} 66. h6 {[%clk 0:00:08]} 1-0


[Site "https://www.chess.com"]